fUST/lending_fUST_20240502
["ID","MTS","AMOUNT","RATE_DAILY","PERIOD"]
[325221238,1714594251980,-525.76,0.00053972,120]
[325221239,1714594251989,-503.96570939,0.00053972,120]
[325221240,1714594251999,-664.25,0.00053972,120]
[325221241,1714594252011,-500.0,0.00053972,120]
[325221242,1714594252020,-500.0,0.00053972,120]
[325221243,1714594252029,-500.0,0.00053972,120]
[325221244,1714594252037,-500.0,0.00053972,120]
[325221245,1714594252046,-500.0,0.00053972,120]
[325221246,1714594252197,-600.0,0.00053972,120]
[325221247,1714594252207,-500.0,0.00053972,120]
[325221248,1714594252217,-722.11,0.00053972,120]
[325221249,1714594252227,-494.60499216,0.00053972,120]
[325221250,1714594252237,-500.0,0.00053972,120]
[325221251,1714594252248,-500.0,0.00053972,120]
[325221252,1714594252260,-661.06,0.00053972,120]
[325221253,1714594252269,-500.0,0.00053972,120]
[325221254,1714594252278,-500.0,0.00053972,120]
[325221255,1714594252287,-500.0,0.00053972,120]
[325221256,1714594252296,-526.741002,0.00053972,7]
[325221257,1714594252305,-946.02,0.00053972,120]
[325221258,1714594252315,-500.0,0.00053972,120]
[325221259,1714594252326,-722.96,0.00053972,120]
[325221260,1714594252336,-500.0,0.00053972,120]
[325221261,1714594252344,-526.741002,0.00053972,7]
[325221262,1714594252353,-500.0,0.00053972,120]
[325221263,1714594252364,-500.0,0.00053972,120]
[325221264,1714594252373,-358.07397349,0.00053972,120]
[325221265,1714594252383,-2083.51,0.00053972,120]
[325221266,1714594252392,-950.4,0.00053972,120]
[325221267,1714594252404,-548.28,0.00053972,120]
[325221268,1714594252414,-500.0,0.00053972,120]
[325221269,1714594252423,-500.0,0.00053972,120]
[325221270,1714594252432,-949.4,0.00053972,120]
[325221271,1714594252442,-500.0,0.00053972,120]
[325221272,1714594252453,-500.0,0.00053972,120]
[325221273,1714594252462,-500.0,0.00053972,120]
[325221274,1714594252471,-501.10882373,0.00053972,120]
[325221275,1714594252480,-197.38624522,0.00053972,120]
[325221276,1714594252489,-681.06,0.00053972,7]
[325221277,1714594252498,-151.0,0.00053972,7]
[325221278,1714594252510,-511.76493726,0.00053972,120]
[325221279,1714594252519,-6822.69,0.00053972,120]
[325221280,1714594252528,-223.549909,0.00053972,7]
[325221281,1714594252537,-781.34,0.00053972,120]
[325221282,1714594252548,-500.0,0.00053972,120]
[325221283,1714594252558,-151.0,0.00053972,7]
[325221284,1714594252567,-151.0,0.00053972,7]
[325221285,1714594252576,-500.0,0.00053972,120]
[325221286,1714594252585,-500.0,0.00053972,120]
[325221287,1714594252595,-543.5279668,0.00053972,7]
[325221288,1714594252604,-500.0,0.00053972,5]
[325221289,1714594252614,-500.0,0.00053972,120]
[325221290,1714594252624,-583.28710045,0.00053972,120]
[325221291,1714594252634,-1629.65,0.00053972,120]
[325221292,1714594252644,-508.57,0.00053972,120]
[325221293,1714594252654,-500.0,0.00053972,120]
[325221294,1714594252664,-500.0,0.00053972,120]
[325221295,1714594252674,-1231.53,0.00053972,120]
[325221296,1714594252684,-500.0,0.00053972,120]
[325221297,1714594252693,-500.0,0.00053972,120]
[325221298,1714594252704,-500.0,0.00053972,20]
[325221299,1714594252714,-1110.07,0.00053972,120]
[325221300,1714594252723,-500.0,0.00053972,120]
[325221301,1714594252733,-712.21,0.00053972,120]
[325221302,1714594252743,-533.04000945,0.00053972,120]
[325221303,1714594252753,-500.0,0.00053972,120]
[325221304,1714594252763,-500.0,0.00053972,120]
[325221305,1714594252773,-957.76,0.00053972,21]
[325221306,1714594252783,-609.09,0.00053972,120]
[325221307,1714594252792,-500.0,0.00053972,120]
[325221308,1714594252801,-507.68,0.00053972,120]
[325221309,1714594252810,-1130.22,0.00053972,120]
[325221310,1714594252820,-915.21,0.00053972,120]
[325221311,1714594252830,-500.0,0.00053972,120]
[325221312,1714594252839,-500.0,0.00053972,120]
[325221313,1714594252848,-500.0,0.00053972,120]
[325221314,1714594252857,-500.0,0.00053972,120]
[325221315,1714594252867,-151.0,0.00053972,7]
[325221316,1714594252876,-500.0,0.00053972,120]
[325221317,1714594252885,-151.0,0.00053972,7]
[325221318,1714594252894,-500.0,0.00053972,120]
[325221319,1714594252904,-512.59,0.00053972,120]
[325221320,1714594252914,-500.0,0.00053972,120]
[325221321,1714594252923,-500.0,0.00053972,120]
[325221322,1714594252932,-500.0,0.00053972,120]
[325221323,1714594252942,-500.0,0.00053972,120]
[325221324,1714594252951,-500.0,0.00053972,120]
[325221326,1714594252960,-500.0,0.00053972,60]
[325221328,1714594252969,-3356.79,0.00053972,120]
[325221330,1714594252978,-500.0,0.00053972,120]
[325221332,1714594252987,-500.0,0.00053972,120]
[325221333,1714594252996,-500.0,0.00053972,120]
[325221335,1714594253007,-1865.9,0.00053972,2]
[325221337,1714594253016,-500.0,0.00053972,120]
[325221338,1714594253025,-362.826832,0.00053972,7]
[325221340,1714594253034,-250.208566,0.00053972,7]
[325221342,1714594253043,-544.46313943,0.00053972,120]
[325221343,1714594253052,-362.826832,0.00053972,7]
[325221345,1714594253061,-250.208566,0.00053972,7]
[325221346,1714594253071,-424.38442535,0.00053972,120]
[325221347,1714594253092,-1335.82557465,0.00053972,120]
[325221348,1714594253101,-319.82131593,0.00053972,120]
[325221349,1714594253111,-500.0,0.00053972,120]
[325221350,1714594253120,-1137.82,0.00053972,120]
[325221351,1714594253129,-545.93,0.00053972,120]
[325221352,1714594253139,-151.0,0.00053972,7]
[325221353,1714594253148,-933.49,0.00053972,120]
[325221354,1714594253157,-500.0,0.00053972,120]
[325221355,1714594253166,-500.0,0.00053972,120]
[325221356,1714594253176,-500.0,0.00053972,120]
[325221357,1714594253185,-243.76330396,0.00053972,120]
[325221358,1714594253195,-501.20557834,0.00053972,120]
[325221359,1714594253204,-991.04,0.00053972,120]
[325221360,1714594253213,-212.44352,0.00053972,7]
[325221361,1714594253223,-1054.39973228,0.00053972,120]
[325221606,1714594862742,379.53531224,9.999e-05,2]
[325221663,1714595432465,-379.53531224,0.00020909,2]
[325221665,1714595432474,-1621.73271947,0.0002091,2]
[325221667,1714595432483,-373.2582,0.00020911,2]
[325221669,1714595432496,-718.54795119,0.00020912,2]
[325221671,1714595432505,-356.3885013,0.00020912,2]
[325221673,1714595432516,-6583.23031428,0.00020912,2]
[325221675,1714595432524,-284.9351668,0.00020912,2]
[325221677,1714595432533,-607.69827719,0.00020912,2]
[325221679,1714595432542,-208.73934857,0.00020912,2]
[325221681,1714595432550,-15672.89435023,0.00020912,2]
[325221683,1714595432560,-329.34268375,0.00021317,2]
[325221685,1714595432569,-246.00731625,0.00021317,2]
[325221687,1714595432578,-24900.0,0.00021318,2]
[325221689,1714595432587,-172.58822947,0.00024864,2]
[325221691,1714595432596,-180.735536,0.00024964,2]
[325221693,1714595432605,-499.9,0.00028222,3]
[325221695,1714595432614,-154.0,0.0003,2]
[325221697,1714595432623,-499.9,0.00031027,3]
[325221699,1714595432632,-499.9,0.00033833,3]
[325221701,1714595432641,-466.46671286,0.00034,4]
[325221703,1714595432651,-499.9,0.00036638,3]
[325221705,1714595432663,-5000.0,0.00039,4]
[325221707,1714595432671,-499.9,0.00039444,3]
[325221709,1714595432680,-248.82057185,0.0003946,7]
[325221711,1714595432691,-172.58822944,0.00039871,2]
[325221713,1714595432700,-189.15626406,0.00041,2]
[325221715,1714595432709,-252.6859923,0.00041,2]
[325221717,1714595432718,-178.1362501,0.00041096,2]
[325221719,1714595432727,-154.8510483,0.00041859,30]
[325221720,1714595432737,-499.9,0.00042249,3]
[325221721,1714595432749,-932.0,0.00043213,30]
[325221722,1714595432759,-932.0,0.00043213,30]
[325221723,1714595432768,-932.0,0.00043213,30]
[325221724,1714595432778,-932.0,0.00043213,30]
[325221725,1714595432787,-932.0,0.00044106,30]
[325221726,1714595432796,-499.9,0.00045055,5]
[325221727,1714595432806,-932.0,0.00046427,30]
[325221728,1714595432815,-486.36669469,0.00046873,30]
[325221729,1714595432823,-499.9,0.0004786,7]
[325221730,1714595432832,-932.0,0.0004887,30]
[325221731,1714595432841,-424.130374,0.00049863,2]
[325221732,1714595432850,-203.577557,0.00049863,2]
[325221733,1714595432859,-150.0,0.00050135,120]
[325221734,1714595432868,-499.9,0.00050666,14]
[325221735,1714595432878,-486.36669469,0.0005069,60]
[325221736,1714595432887,-3157.056366,0.00051,120]
[325221737,1714595432896,-932.0,0.00051443,30]
[325221738,1714595432906,-248.82057185,0.00051666,60]
[325221739,1714595432915,-392.0,0.00052,120]
[325221740,1714595432925,-166.666666,0.00052055,2]
[325221741,1714595432934,-2000.0,0.00052776,2]
[325221742,1714595432943,-15.50839929,0.00052866,3]
[325221744,1714595432955,-743.51652,0.00052866,3]
[325221747,1714595432966,-277.54508071,0.00052866,3]
[325221767,1714595433152,-863.81,0.00052866,3]
[325221769,1714595433162,-719.84,0.00052866,3]
[325221771,1714595433172,-357.95757736,0.00052875,120]
[325221773,1714595433181,-335.24734193,0.00052875,120]
[325221775,1714595433192,-663.75265807,0.00052875,120]
[325221778,1714595433202,-3662.70235331,0.00052876,61]
[325222181,1714595440682,-417.0,0.00050135,120]
[325222183,1714595440695,-599.87,0.00052866,3]
[325222185,1714595440704,-75.07050656,0.00052876,61]
[325222188,1714595440714,-500.0,0.00052876,120]
[325222190,1714595440723,-500.0,0.00052876,120]
[325222191,1714595440734,-500.0,0.00052876,120]
[325222194,1714595440744,-500.0,0.00052876,120]
[325222195,1714595440755,-1000.0,0.00052876,120]
[325222197,1714595440764,-500.0,0.00052876,120]
[325222200,1714595440773,-500.0,0.00052876,120]
[325222202,1714595440783,-500.0,0.00052876,120]
[325222204,1714595440791,-500.0,0.00052876,120]
[325222206,1714595440801,-174.29345129,0.00052876,120]
[325222208,1714595440810,-500.0,0.00052876,120]
[325222210,1714595440819,-500.0,0.00052876,120]
[325222212,1714595440828,-500.0,0.00052876,120]
[325222214,1714595440837,-223.82861418,0.00052876,120]
[325222215,1714595440846,-500.0,0.00052876,120]
[325222217,1714595440856,-500.0,0.00052876,120]
[325222220,1714595440865,-500.0,0.00052876,120]
[325222222,1714595440875,-500.0,0.00052876,120]
[325222223,1714595440884,-500.0,0.00052876,120]
[325222225,1714595440893,-500.0,0.00052876,120]
[325222227,1714595440902,-500.0,0.00052876,120]
[325222230,1714595440912,-500.0,0.00052876,120]
[325222232,1714595440921,-500.0,0.00052876,120]
[325222234,1714595440930,-500.0,0.00052876,120]
[325222236,1714595440940,-500.0,0.00052876,120]
[325222237,1714595440949,-500.0,0.00052876,120]
[325222239,1714595440959,-500.0,0.00052876,120]
[325222242,1714595440968,-500.0,0.00052876,120]
[325222244,1714595440978,-500.0,0.00052876,120]
[325222245,1714595440987,-500.0,0.00052876,120]
[325222248,1714595440998,-500.0,0.00052876,120]
[325222249,1714595441007,-500.0,0.00052876,120]
[325222251,1714595441018,-500.0,0.00052876,120]
[325222253,1714595441027,-797.5,0.00052876,120]
[325222255,1714595441037,-500.0,0.00052876,120]
[325222257,1714595441047,-500.0,0.00052876,120]
[325222259,1714595441057,-500.0,0.00052876,120]
[325222261,1714595441067,-500.0,0.00052876,3]
[325222263,1714595441076,-500.0,0.00052876,120]
[325222266,1714595441086,-500.0,0.00052876,120]
[325222268,1714595441096,-500.0,0.00052876,120]
[325222270,1714595441105,-946.26,0.00052876,120]
[325222272,1714595441114,-500.0,0.00052876,120]
[325222274,1714595441124,-500.0,0.00052876,120]
[325222276,1714595441133,-642.27581446,0.00052876,120]
[325222278,1714595441142,-500.0,0.00052876,120]
[325222280,1714595441152,-500.0,0.00052876,120]
[325222282,1714595441161,-500.0,0.00052876,120]
[325222284,1714595441170,-500.0,0.00052876,120]
[325222286,1714595441180,-300.0,0.00052876,7]
[325222288,1714595441189,-500.0,0.00052876,120]
[325222290,1714595441198,-500.0,0.00052876,120]
[325222292,1714595441208,-500.0,0.00052876,120]
[325222294,1714595441217,-710.6,0.00052876,120]
[325222296,1714595441226,-500.0,0.00052876,120]
[325222297,1714595441235,-13.29619536,0.00052876,120]
[325222408,1714595443624,-635.89380464,0.00052876,120]
[325222410,1714595443633,-508.8122228,0.00052876,120]
[325222412,1714595443643,-500.0,0.00052876,120]
[325222415,1714595443657,-500.0,0.00052876,120]
[325222417,1714595443666,-629.84,0.00052876,120]
[325222419,1714595443676,-500.0,0.00052876,120]
[325222421,1714595443686,-500.0,0.00052876,120]
[325222422,1714595443695,-500.0,0.00052876,120]
[325222423,1714595443705,-913.03,0.00052876,120]
[325222424,1714595443714,-500.0,0.00052876,120]
[325222425,1714595443724,-500.0,0.00052876,120]
[325222426,1714595443736,-592.57,0.00052876,120]
[325222427,1714595443747,-500.0,0.00052876,120]
[325222429,1714595443759,-805.35,0.00052876,120]
[325222430,1714595443769,-500.0,0.00052876,120]
[325222432,1714595443778,-500.0,0.00052876,120]
[325222433,1714595443788,-500.0,0.00052876,120]
[325222434,1714595443797,-500.0,0.00052876,120]
[325222435,1714595443807,-500.0,0.00052876,120]
[325222436,1714595443817,-335.29764675,0.00052876,120]
[325222437,1714595443826,-639.88,0.00052876,120]
[325222438,1714595443836,-732.23,0.00052876,120]
[325222440,1714595443846,-500.0,0.00052876,2]
[325222442,1714595443855,-53.80467563,0.00052876,120]
[325222493,1714596066891,325.88231934,9.999e-05,2]
[325222494,1714596066921,53.6529929,9.999e-05,2]
[325222541,1714596633198,-160.42993439,0.00019608,2]
[325222542,1714596633208,-379.53531224,0.00019707,2]
[325222543,1714596633219,-923.553024,0.00019708,2]
[325222544,1714596638773,-15000.0,0.00019382,2]
[325222545,1714596639074,-9900.0,0.00019382,2]
[325222546,1714596639083,-539.9652466,0.00019708,2]
[325222548,1714596639093,-314.78574907,0.00020912,2]
[325222549,1714596639102,-1208.57172027,0.00020912,2]
[325222550,1714596639112,-524.35214253,0.00020912,2]
[325222552,1714596639121,-12739.51974253,0.00020913,2]
[325222554,1714596639130,-215.4,0.00028581,3]
[325222556,1714596639139,-215.4,0.00031354,3]
[325222557,1714596639148,-215.4,0.00034127,3]
[325222558,1714596639157,-215.4,0.00036899,3]
[325222559,1714596639166,-5000.0,0.00039,4]
[325222560,1714596639175,-215.4,0.00039672,3]
[325222561,1714596639184,-215.4,0.00042445,3]
[325222562,1714596639193,-151.0,0.00045,120]
[325222563,1714596639202,-215.4,0.00045218,5]
[325222564,1714596639211,-151.0,0.00046685,120]
[325222566,1714596639221,-154.8510483,0.00047923,30]
[325222567,1714596639230,-215.4,0.00047991,7]
[325222569,1714596639239,-151.0,0.00048356,120]
[325222570,1714596639248,-373.98646,0.00049863,2]
[325222572,1714596639257,-151.0,0.00050027,120]
[325222574,1714596639266,-473.90804044,0.00050769,60]
[325222576,1714596639275,-151.0,0.00051699,120]
[325222578,1714596639284,-150.0,0.00051861,120]
[325222580,1714596639293,-500.0,0.00052054,120]
[325222582,1714596639301,-166.666666,0.00052055,2]
[325222584,1714596639310,-154.8510483,0.00052563,60]
[325222586,1714596639319,-289.29,0.00052766,3]
[325222588,1714596639328,-451.67,0.00052766,3]
[325222590,1714596639338,-500.0,0.00052775,120]
[325222592,1714596639347,-500.0,0.00052775,120]
[325222594,1714596639356,-88888.0,0.00052776,120]
[325222596,1714596639365,-2000.0,0.00052776,2]
[325222598,1714596639374,-160.42993439,0.00052776,2]
[325222600,1714596639383,-500.0,0.00052875,120]
[325222601,1714596639392,-500.0,0.00052875,120]
[325222603,1714596639401,-500.0,0.00052875,120]
[325222605,1714596639410,-500.0,0.00052875,120]
[325222608,1714596639422,-500.0,0.00052875,120]
[325222610,1714596639431,-500.0,0.00052875,120]
[325222611,1714596639441,-500.0,0.00052875,120]
[325222613,1714596639449,-1868.88642993,0.00052876,61]
[325222615,1714596639459,-500.0,0.00052876,120]
[325222617,1714596639469,-500.0,0.00052876,120]
[325222619,1714596639478,-500.0,0.00052876,120]
[325222621,1714596639487,-352.30458473,0.00052876,120]
[325222623,1714596639496,-500.0,0.00052876,120]
[325222625,1714596639505,-500.0,0.00052876,120]
[325222627,1714596639515,-500.0,0.00052876,120]
[325222629,1714596639524,-500.0,0.00052876,120]
[325222631,1714596639533,-500.0,0.00052876,120]
[325222633,1714596639543,-500.0,0.00052876,120]
[325222635,1714596639552,-751.19,0.00052876,2]
[325222637,1714596639561,-500.0,0.00052876,120]
[325222639,1714596639570,-500.0,0.00052876,120]
[325222641,1714596639578,-500.0,0.00052876,120]
[325222643,1714596639588,-500.0,0.00052876,120]
[325222645,1714596639596,-605.36,0.00052876,120]
[325222647,1714596639605,-635.9,0.00052876,120]
[325222649,1714596639614,-500.0,0.00052876,120]
[325222651,1714596639623,-500.0,0.00052876,120]
[325222653,1714596639631,-500.0,0.00052876,120]
[325222655,1714596639640,-682.13,0.00052876,120]
[325222656,1714596639649,-600.0,0.00052876,120]
[325222658,1714596639658,-500.0,0.00052876,120]
[325222660,1714596639668,-500.82733921,0.00052876,120]
[325222662,1714596639677,-500.0,0.00052876,120]
[325222664,1714596639686,-500.0,0.00052876,120]
[325222666,1714596639694,-500.0,0.00052876,120]
[325222668,1714596639703,-905.44,0.00052876,120]
[325222670,1714596639715,-626.22634825,0.00052876,120]
[325222672,1714596639725,-500.0,0.00052876,120]
[325222674,1714596639734,-500.0,0.00052876,120]
[325222676,1714596639743,-1823.07,0.00052876,120]
[325222678,1714596639752,-500.0,0.00052876,120]
[325222680,1714596639762,-199.82867865,0.00052876,120]
[325222682,1714596639771,-500.0,0.00052876,120]
[325222684,1714596639780,-500.0,0.00052876,120]
[325222686,1714596639789,-500.0,0.00052876,120]
[325222688,1714596639798,-500.0,0.00052876,120]
[325222690,1714596639807,-500.0,0.00052876,120]
[325222692,1714596639815,-500.0,0.00052876,120]
[325222694,1714596639824,-500.0,0.00052876,120]
[325222696,1714596639833,-1540.18,0.00052876,120]
[325222697,1714596639842,-500.0,0.00052876,120]
[325222699,1714596639851,-500.0,0.00052876,120]
[325222701,1714596639860,-747.85,0.00052876,120]
[325222703,1714596639869,-500.0,0.00052876,120]
[325222705,1714596639878,-500.0,0.00052876,120]
[325222707,1714596639886,-500.0,0.00052876,120]
[325222709,1714596639896,-500.0,0.00052876,120]
[325222711,1714596639906,-223.60349342,0.00052876,120]
[325222713,1714596639916,-582.8,0.00052876,120]
[325222715,1714596639924,-193.66475377,0.00052876,120]
[325222717,1714596639934,-500.0,0.00052876,120]
[325222719,1714596639943,-500.0,0.00052876,120]
[325222721,1714596639952,-500.0,0.00052876,120]
[325222723,1714596639965,-500.0,0.00052876,120]
[325222725,1714596639974,-500.0,0.00052876,120]
[325222727,1714596639984,-500.0,0.00052876,120]
[325222729,1714596639995,-500.0,0.00052876,120]
[325222731,1714596640004,-500.0,0.00052876,120]
[325222733,1714596640014,-168.83582934,0.00052876,120]
[325222735,1714596640023,-575.5951722,0.00052876,120]
[325222737,1714596640034,-352.19897217,0.00052876,120]
[325222738,1714596640044,-500.0,0.00052876,120]
[325222740,1714596640054,-500.0,0.00052876,120]
[325222742,1714596640064,-783.32,0.00052876,120]
[325222744,1714596640073,-500.0,0.00052876,120]
[325222746,1714596640082,-500.0,0.00052876,30]
[325222748,1714596640091,-500.0,0.00052876,120]
[325222750,1714596640100,-500.0,0.00052876,120]
[325222752,1714596640109,-500.0,0.00052876,120]
[325222754,1714596640118,-500.0,0.00052876,120]
[325222756,1714596640128,-500.0,0.00052876,120]
[325222758,1714596640137,-500.0,0.00052876,120]
[325222760,1714596640146,-397.13468559,0.00052876,120]
[325222762,1714596640155,-660.58,0.00052876,120]
[325222764,1714596640164,-500.0,0.00052876,120]
[325222766,1714596640173,-500.0,0.00052876,120]
[325222769,1714596640182,-528.91,0.00052876,120]
[325222772,1714596640191,-500.0,0.00052876,120]
[325222774,1714596640200,-500.0,0.00052876,120]
[325222776,1714596640210,-500.0,0.00052876,120]
[325222778,1714596640220,-500.0,0.00052876,120]
[325222780,1714596640234,-500.0,0.00052876,120]
[325222782,1714596640243,-500.0,0.00052876,120]
[325222784,1714596640253,-500.0,0.00052876,120]
[325222786,1714596640262,-500.96041443,0.00052876,120]
[325222788,1714596640271,-500.0,0.00052876,120]
[325222790,1714596640280,-500.0,0.00052876,120]
[325222792,1714596640290,-500.0,0.00052876,120]
[325222794,1714596640299,-651.79,0.00052876,120]
[325222796,1714596640308,-569.39,0.00052876,120]
[325222798,1714596640317,-533.64,0.00052876,120]
[325222800,1714596640327,-893.16,0.00052876,120]
[325222802,1714596640336,-500.0,0.00052876,120]
[325222804,1714596640345,-750.74,0.00052876,120]
[325222806,1714596640354,-500.0,0.00052876,120]
[325222808,1714596640363,-180.66504651,0.00052876,120]
[325222811,1714596640373,-605.18,0.00052876,120]
[325222814,1714596640383,-500.0,0.00052876,120]
[325222816,1714596640392,-918.03,0.00052876,120]
[325222818,1714596640401,-500.0,0.00052876,120]
[325222820,1714596640410,-737.09,0.00052876,120]
[325222822,1714596640419,-500.0,0.00052876,120]
[325222824,1714596640429,-500.0,0.00052876,120]
[325222826,1714596640438,-809.76,0.00052876,120]
[325222828,1714596640447,-500.0,0.00052876,120]
[325222830,1714596640456,-507.26523388,0.00052876,120]
[325222832,1714596640467,-500.0,0.00052876,120]
[325222834,1714596640476,-816.25,0.00052876,120]
[325222836,1714596640486,-736.04,0.00052876,120]
[325222838,1714596640495,-500.0,0.00052876,120]
[325222840,1714596640505,-500.0,0.00052876,120]
[325222842,1714596640514,-500.0,0.00052876,120]
[325222844,1714596640522,-676.4,0.00052876,120]
[325222846,1714596640532,-500.0,0.00052876,120]
[325222848,1714596640541,-500.0,0.00052876,120]
[325222850,1714596640550,-500.0,0.00052876,120]
[325222852,1714596640559,-500.0,0.00052876,120]
[325222854,1714596640569,-500.0,0.00052876,120]
[325222856,1714596640578,-725.28,0.00052876,120]
[325222858,1714596640587,-617.03,0.00052876,120]
[325222860,1714596640596,-500.0,0.00052876,60]
[325222862,1714596640605,-500.0,0.00052876,120]
[325222864,1714596640614,-500.0,0.00052876,120]
[325222866,1714596640624,-500.0,0.00052876,120]
[325222868,1714596640633,-500.0,0.00052876,120]
[325222870,1714596640642,-500.0,0.00052876,120]
[325222872,1714596640651,-500.0,0.00052876,120]
[325222874,1714596640660,-500.0,0.00052876,120]
[325222876,1714596640670,-807.48,0.00052876,120]
[325222878,1714596640678,-747.13,0.00052876,120]
[325222880,1714596640687,-500.0,0.00052876,120]
[325222882,1714596640696,-500.0,0.00052876,120]
[325222884,1714596640706,-500.0,0.00052876,2]
[325222886,1714596640715,-880.55,0.00052876,120]
[325222888,1714596640724,-772.32,0.00052876,120]
[325222890,1714596640733,-500.0,0.00052876,120]
[325222892,1714596640743,-501.01164287,0.00052876,120]
[325222894,1714596640752,-500.0,0.00052876,120]
[325222896,1714596640761,-500.0,0.00052876,120]
[325222898,1714596640770,-501.29926157,0.00052876,120]
[325222900,1714596640779,-1424.37,0.00052876,120]
[325222902,1714596640788,-902.14,0.00052876,120]
[325222904,1714596640797,-500.0,0.00052876,120]
[325222906,1714596640806,-500.0,0.00052876,120]
[325222908,1714596640815,-500.0,0.00052876,120]
[325222910,1714596640823,-500.0,0.00052876,2]
[325222912,1714596640832,-622.31,0.00052876,120]
[325222914,1714596640841,-500.0,0.00052876,120]
[325222916,1714596640850,-500.0,0.00052876,120]
[325222918,1714596640859,-908.32,0.00052876,120]
[325222920,1714596640868,-500.0,0.00052876,120]
[325222922,1714596640877,-500.0,0.00052876,120]
[325222924,1714596640886,-500.0,0.00052876,120]
[325222926,1714596640896,-1274.48,0.00052876,120]
[325222928,1714596640904,-500.0,0.00052876,120]
[325222930,1714596640913,-500.0,0.00052876,120]
[325222932,1714596640922,-500.0,0.00052876,120]
[325222934,1714596640931,-500.0,0.00052876,120]
[325222936,1714596640940,-500.0,0.00052876,120]
[325222938,1714596640953,-500.0,0.00052876,120]
[325222940,1714596640962,-500.0,0.00052876,120]
[325222942,1714596640971,-500.0,0.00052876,120]
[325222944,1714596640980,-500.0,0.00052876,120]
[325222946,1714596640990,-500.0,0.00052876,120]
[325222948,1714596640999,-500.0,0.00052876,120]
[325222949,1714596641009,-505.13,0.00052876,120]
[325222951,1714596641018,-500.0,0.00052876,120]
[325222954,1714596641027,-2748.45,0.00052876,120]
[325222956,1714596641046,-500.0,0.00052876,120]
[325222958,1714596641056,-2748.72,0.00052876,120]
[325222960,1714596641065,-500.0,0.00052876,120]
[325222962,1714596641074,-751.55,0.00052876,120]
[325222963,1714596641083,-335.33380821,0.00052876,120]
[325222965,1714596641092,-500.0,0.00052876,120]
[325222968,1714596641102,-500.0,0.00052876,120]
[325222969,1714596641111,-500.0,0.00052876,120]
[325222972,1714596641121,-500.0,0.00052876,120]
[325222974,1714596641131,-500.0,0.00052876,120]
[325222976,1714596641139,-500.0,0.00052876,120]
[325222978,1714596641148,-500.89811379,0.00052876,120]
[325222980,1714596641157,-500.0,0.00052876,120]
[325222981,1714596641166,-500.7833895,0.00052876,120]
[325222983,1714596641175,-500.0,0.00052876,120]
[325222985,1714596641184,-500.0,0.00052876,120]
[325222987,1714596641193,-500.0,0.00052876,120]
[325222989,1714596641202,-500.0,0.00052876,120]
[325222991,1714596641211,-500.0,0.00052876,120]
[325222994,1714596641222,-410.03210294,0.00052876,120]
[325222995,1714596641231,-294.99521183,0.00052876,120]
[325222996,1714596641240,-891.08,0.00052876,120]
[325222997,1714596641249,-542.04,0.00052876,120]